{"text_format":"2","workbook":"xlsx","n_sheets":1,"sheets":["fejlesztés matematika 8. évf."],"not_rendered":{"charts":0,"images":0,"macros":0,"external_links":0,"defined_names":0,"comments":0,"pivot_tables":0},"unopened":[],"bounds":{"document_bytes":16777216,"sheet_cells":100000,"run_cost":"one","rows_first":2000,"rows_last":500,"rows_between":2000,"halvings":0,"cell_chars":16384,"cell_head_chars":4096},"cells_cut":0,"cells_raw":0,"read":"whole","date_system":"1900"}

{"sheet":"fejlesztés matematika 8. évf.","index":0,"n_rows":228,"n_cols":14,"rows_kept":228,"cut":false,"hidden":false,"merged":[]}
["Név","OM azonosító","Feladatellátási hely azonosítója","Irányítószám","Település","Cím (utca, házszám)","Képzési forma","Az elmúlt 5 évben hányszor teljesítette a feltételt","Járás","Megye","Régió","Családiháttér-index (CSHI)","CSHI megbízhatósági tartomány","Jelentésoldal"]
["A Mindszenty József Általános Iskola, Gimnázium és Kollégium Széchenyi István Tagiskolája","037526",2,8925,"Búcsúszentlászló","Széchenyi István utca 4.","általános iskola",2,"Zalaegerszegi","Zala","Nyugat-Dunántúl","-0,090","(-0,39, 0,27)",{"$f":"HYPERLINK(\"https://www.kir.hu/okmfit/getJelentes.aspx?tip=t&id=037526&th=2\",\"Jelentések\")","v":"Jelentések"}]
["Aba Sámuel Általános Iskola és Alapfokú Művészeti Iskola","032232",12,3127,"Kazár","Szabadság út 3.","általános iskola",2,"Salgótarjáni","Nógrád","Észak-Magyarország","-1,007","(-1,37, -0,63)",{"$f":"HYPERLINK(\"https://www.kir.hu/okmfit/getJelentes.aspx?tip=t&id=032232&th=12\",\"Jelentések\")","v":"Jelentések"}]
["Ácsi Gárdonyi Géza Általános Iskola","201392",5,2941,"Ács","Fő utca 88.","általános iskola",2,"Komáromi","Komárom-Esztergom","Közép-Dunántúl","-0,312","(-0,50, -0,07)",{"$f":"HYPERLINK(\"https://www.kir.hu/okmfit/getJelentes.aspx?tip=t&id=201392&th=5\",\"Jelentések\")","v":"Jelentések"}]
["Ajaki Tamási Áron Általános Iskola és Alapfokú Művészeti Iskola","033474",1,4524,"Ajak","Hajnal út 11.","általános iskola",1,"Kisvárdai","Szabolcs-Szatmár-Bereg","Észak-Alföld","-0,159","(-0,45, 0,18)",{"$f":"HYPERLINK(\"https://www.kir.hu/okmfit/getJelentes.aspx?tip=t&id=033474&th=1\",\"Jelentések\")","v":"Jelentések"}]
["Albertfalvi Don Bosco Katolikus Általános Iskola és Óvoda","034997",1,1116,"Budapest","Albertfalva utca 9-13.","általános iskola",2,"Dél-budai - XI. ker.","Budapest","Budapest","1,037","(0,85, 1,21)",{"$f":"HYPERLINK(\"https://www.kir.hu/okmfit/getJelentes.aspx?tip=t&id=034997&th=1\",\"Jelentések\")","v":"Jelentések"}]
["Áldás Utcai Általános Iskola","034798",1,1025,"Budapest","Áldás utca 1.","általános iskola",2,"Észak-budai - II. ker.","Budapest","Budapest","1,322","(1,05, 1,47)",{"$f":"HYPERLINK(\"https://www.kir.hu/okmfit/getJelentes.aspx?tip=t&id=034798&th=1\",\"Jelentések\")","v":"Jelentések"}]
["Alsóerdősori Bárdos Lajos Általános Iskola és Gimnázium","100566",1,1074,"Budapest","Alsóerdősor utca 14-16.","általános iskola",2,"Belső-pesti - VII. ker.","Budapest","Budapest",null,null,{"$f":"HYPERLINK(\"https://www.kir.hu/okmfit/getJelentes.aspx?tip=t&id=100566&th=1\",\"Jelentések\")","v":"Jelentések"}]
["Ambrózy-Migazzi István Általános Iskola","036704",1,9763,"Vasszécseny","Petőfi Sándor utca 72.","általános iskola",1,"Szombathelyi","Vas","Nyugat-Dunántúl","0,324","(0,04, 0,73)",{"$f":"HYPERLINK(\"https://www.kir.hu/okmfit/getJelentes.aspx?tip=t&id=036704&th=1\",\"Jelentések\")","v":"Jelentések"}]
["Babos József Térségi Általános Iskola","030668",1,9431,"Fertőd","Madách sétány 2.","általános iskola",2,"Soproni","Győr-Moson-Sopron","Nyugat-Dunántúl",null,null,{"$f":"HYPERLINK(\"https://www.kir.hu/okmfit/getJelentes.aspx?tip=t&id=030668&th=1\",\"Jelentések\")","v":"Jelentések"}]
["Bajai Szentistváni Általános Iskola","027735",1,6500,"Baja","Dózsa György út 131-133.","általános iskola",1,"Bajai","Bács-Kiskun","Dél-Alföld","-0,304","(-0,54, 0,00)",{"$f":"HYPERLINK(\"https://www.kir.hu/okmfit/getJelentes.aspx?tip=t&id=027735&th=1\",\"Jelentések\")","v":"Jelentések"}]
["Bakáts Téri Ének-zenei Általános Iskola","034937",1,1092,"Budapest","Bakáts tér 12.","általános iskola",2,"Belső-pesti - IX. ker.","Budapest","Budapest","0,562","(0,35, 0,73)",{"$f":"HYPERLINK(\"https://www.kir.hu/okmfit/getJelentes.aspx?tip=t&id=034937&th=1\",\"Jelentések\")","v":"Jelentések"}]
["Bán Aladár Általános Iskola","037026",1,8100,"Várpalota","Körmöcbánya utca 1. Bán Aladár Általános Iskola","általános iskola",1,"Várpalotai","Veszprém","Közép-Dunántúl","-0,019","(-0,20, 0,16)",{"$f":"HYPERLINK(\"https://www.kir.hu/okmfit/getJelentes.aspx?tip=t&id=037026&th=1\",\"Jelentések\")","v":"Jelentések"}]
["Bátaszéki Kanizsai Dorottya Általános Iskola és Alapfokú Művészeti Iskola","201327",1,7140,"Bátaszék","Budai Nagy Antal utca 9-11.","általános iskola",1,"Szekszárdi","Tolna","Dél-Dunántúl","-0,428","(-0,61, -0,27)",{"$f":"HYPERLINK(\"https://www.kir.hu/okmfit/getJelentes.aspx?tip=t&id=201327&th=1\",\"Jelentések\")","v":"Jelentések"}]
["Béke Utcai Általános Iskola","029637",1,6722,"Szeged","Béke utca 7-9.","általános iskola",3,"Szegedi","Csongrád","Dél-Alföld","0,673","(0,46, 0,90)",{"$f":"HYPERLINK(\"https://www.kir.hu/okmfit/getJelentes.aspx?tip=t&id=029637&th=1\",\"Jelentések\")","v":"Jelentések"}]
["Benkő István Református Általános Iskola és Gimnázium","200415",1,1043,"Budapest","Nyár utca 4.","általános iskola",1,"Nyugat-pesti - IV. ker.","Budapest","Budapest",null,null,{"$f":"HYPERLINK(\"https://www.kir.hu/okmfit/getJelentes.aspx?tip=t&id=200415&th=1\",\"Jelentések\")","v":"Jelentések"}]
["Bethlen Gábor Református Általános Iskola, Óvoda","035899",1,5200,"Törökszentmiklós","Bethlen Gábor út 1.","általános iskola",3,"Törökszentmiklósi","Jász-Nagykun-Szolnok","Észak-Alföld","-0,103","(-0,35, 0,16)",{"$f":"HYPERLINK(\"https://www.kir.hu/okmfit/getJelentes.aspx?tip=t&id=035899&th=1\",\"Jelentések\")","v":"Jelentések"}]
["Boldog Gizella Katolikus Általános Iskola és Óvoda","027217",1,7700,"Mohács","Szabadság utca 2.","általános iskola",3,"Mohácsi","Baranya","Dél-Dunántúl","0,219","(-0,27, 0,65)",{"$f":"HYPERLINK(\"https://www.kir.hu/okmfit/getJelentes.aspx?tip=t&id=027217&th=1\",\"Jelentések\")","v":"Jelentések"}]
["Bornemisza Péter Gimnázium, Általános Iskola, Alapfokú Művészeti Iskola, Óvoda és Sportiskola Újszász utcai Telephelye","035101",1,1165,"Budapest","Újszász utca 45/B","általános iskola",3,"Észak-pesti - XVI. ker.","Budapest","Budapest",null,null,{"$f":"HYPERLINK(\"https://www.kir.hu/okmfit/getJelentes.aspx?tip=t&id=035101&th=1\",\"Jelentések\")","v":"Jelentések"}]
["Budafoki Herman Ottó Általános Iskola Telephelye","035199",2,1222,"Budapest","Dévény utca 62.","általános iskola",1,"Dél-budai - XXII. ker.","Budapest","Budapest",null,null,{"$f":"HYPERLINK(\"https://www.kir.hu/okmfit/getJelentes.aspx?tip=t&id=035199&th=2\",\"Jelentések\")","v":"Jelentések"}]
["Budaörsi 1. Számú Általános Iskola","037737",3,2040,"Budaörs","Hársfa utca 29.","általános iskola",1,"Budakeszi","Pest","Közép-Magyarország",null,null,{"$f":"HYPERLINK(\"https://www.kir.hu/okmfit/getJelentes.aspx?tip=t&id=037737&th=3\",\"Jelentések\")","v":"Jelentések"}]
["Budapest II. Kerületi Pitypang Utcai Általános Iskola","034808",1,1025,"Budapest","Pitypang utca 17.","általános iskola",2,"Észak-budai - II. ker.","Budapest","Budapest","1,061","(0,92, 1,17)",{"$f":"HYPERLINK(\"https://www.kir.hu/okmfit/getJelentes.aspx?tip=t&id=034808&th=1\",\"Jelentések\")","v":"Jelentések"}]
["Budapest III. Kerületi Bárczi Géza Általános Iskola","034827",1,1039,"Budapest","Bárczi Géza utca 2.","általános iskola",1,"Észak-budai - III.ker.","Budapest","Budapest",null,null,{"$f":"HYPERLINK(\"https://www.kir.hu/okmfit/getJelentes.aspx?tip=t&id=034827&th=1\",\"Jelentések\")","v":"Jelentések"}]
["Budapest III. Kerületi Kerék Általános Iskola és Gimnázium","034836",1,1035,"Budapest","Kerék utca 18-20.","általános iskola",1,"Észak-budai - III.ker.","Budapest","Budapest",null,null,{"$f":"HYPERLINK(\"https://www.kir.hu/okmfit/getJelentes.aspx?tip=t&id=034836&th=1\",\"Jelentések\")","v":"Jelentések"}]
["Budapest III. Kerületi Krúdy Gyula Angol-Magyar Két Tanítási Nyelvű Általános Iskola","035361",1,1037,"Budapest","Gyógyszergyár utca 22-24.","általános iskola",1,"Észak-budai - III.ker.","Budapest","Budapest",null,null,{"$f":"HYPERLINK(\"https://www.kir.hu/okmfit/getJelentes.aspx?tip=t&id=035361&th=1\",\"Jelentések\")","v":"Jelentések"}]
["Budapest V. Kerületi Szemere Bertalan Általános Iskola és Gimnázium","038026",1,1054,"Budapest","Szemere utca 5","általános iskola",2,"Nyugat-pesti - V. ker.","Budapest","Budapest","0,416","(0,14, 0,75)",{"$f":"HYPERLINK(\"https://www.kir.hu/okmfit/getJelentes.aspx?tip=t&id=038026&th=1\",\"Jelentések\")","v":"Jelentések"}]
["Budapest VII. Kerületi Baross Gábor Általános Iskola","034911",1,1078,"Budapest","Hernád utca 42-46.","általános iskola",1,"Belső-pesti - VII. ker.","Budapest","Budapest","-0,892","(-1,23, -0,65)",{"$f":"HYPERLINK(\"https://www.kir.hu/okmfit/getJelentes.aspx?tip=t&id=034911&th=1\",\"Jelentések\")","v":"Jelentések"}]
["Budapest XIII. Kerületi Eötvös József Általános Iskola","035036",1,1131,"Budapest","Futár utca 18.","általános iskola",1,"Nyugat-pesti XIII. ker.","Budapest","Budapest","0,581","(0,40, 0,80)",{"$f":"HYPERLINK(\"https://www.kir.hu/okmfit/getJelentes.aspx?tip=t&id=035036&th=1\",\"Jelentések\")","v":"Jelentések"}]
["Budapest XIII. Kerületi Hunyadi Mátyás Általános Iskola","035023",1,1138,"Budapest","Karikás Frigyes utca 3.","általános iskola",2,"Nyugat-pesti XIII. ker.","Budapest","Budapest","0,587","(0,33, 0,87)",{"$f":"HYPERLINK(\"https://www.kir.hu/okmfit/getJelentes.aspx?tip=t&id=035023&th=1\",\"Jelentések\")","v":"Jelentések"}]
["Budapest XIII. Kerületi Számítástechnikai Általános Iskola","035022",1,1138,"Budapest","Gyöngyösi sétány 7.","általános iskola",2,"Nyugat-pesti XIII. ker.","Budapest","Budapest","0,409","(0,16, 0,63)",{"$f":"HYPERLINK(\"https://www.kir.hu/okmfit/getJelentes.aspx?tip=t&id=035022&th=1\",\"Jelentések\")","v":"Jelentések"}]
["Budapest XIII. Kerületi Tomori Pál Általános Iskola","203202",1,1131,"Budapest","Tomori utca 2.","általános iskola",1,"Nyugat-pesti XIII. ker.","Budapest","Budapest",null,null,{"$f":"HYPERLINK(\"https://www.kir.hu/okmfit/getJelentes.aspx?tip=t&id=203202&th=1\",\"Jelentések\")","v":"Jelentések"}]
["Budapest XIV. Kerületi Álmos Vezér Gimnázium és Általános Iskola","035314",1,1144,"Budapest","Álmos vezér tér 9.","általános iskola",1,"Észak-pesti - XIV. ker.","Budapest","Budapest","0,555","(0,40, 0,74)",{"$f":"HYPERLINK(\"https://www.kir.hu/okmfit/getJelentes.aspx?tip=t&id=035314&th=1\",\"Jelentések\")","v":"Jelentések"}]
["Budapest XV. Kerületi László Gyula Gimnázium és Általános Iskola","035072",4,1157,"Budapest","Kavicsos köz 4.","általános iskola",1,"Észak-pesti - XV. ker.","Budapest","Budapest","-0,112","(-0,29, 0,07)",{"$f":"HYPERLINK(\"https://www.kir.hu/okmfit/getJelentes.aspx?tip=t&id=035072&th=4\",\"Jelentések\")","v":"Jelentések"}]
["Budapest XVI. Kerületi Arany János Általános Iskola","035085",1,1162,"Budapest","Bekecs utca 62-78.","általános iskola",2,"Észak-pesti - XVI. ker.","Budapest","Budapest","0,862","(0,62, 1,16)",{"$f":"HYPERLINK(\"https://www.kir.hu/okmfit/getJelentes.aspx?tip=t&id=035085&th=1\",\"Jelentések\")","v":"Jelentések"}]
["Budapest XVI. Kerületi Herman Ottó Általános Iskola","035088",1,1161,"Budapest","Regele János utca 43-45.","általános iskola",1,"Észak-pesti - XVI. ker.","Budapest","Budapest","0,868","(0,75, 1,03)",{"$f":"HYPERLINK(\"https://www.kir.hu/okmfit/getJelentes.aspx?tip=t&id=035088&th=1\",\"Jelentések\")","v":"Jelentések"}]
["Budapest XVI. Kerületi Szent-Györgyi Albert Általános Iskola","035086",1,1161,"Budapest","Csömöri út 20.","általános iskola",2,"Észak-pesti - XVI. ker.","Budapest","Budapest",null,null,{"$f":"HYPERLINK(\"https://www.kir.hu/okmfit/getJelentes.aspx?tip=t&id=035086&th=1\",\"Jelentések\")","v":"Jelentések"}]
["Budapest XVI. Kerületi Táncsics Mihály Általános Iskola és Gimnázium","035310",1,1165,"Budapest","Táncsics utca 7-9.","általános iskola",4,"Észak-pesti - XVI. ker.","Budapest","Budapest","0,680","(0,51, 0,86)",{"$f":"HYPERLINK(\"https://www.kir.hu/okmfit/getJelentes.aspx?tip=t&id=035310&th=1\",\"Jelentések\")","v":"Jelentések"}]
["Budapest XVII. Kerületi Gregor József Általános Iskola","035107",1,1172,"Budapest","Hősök tere 19-20.","általános iskola",4,"Kelet-pesti - XVII. ker.","Budapest","Budapest","0,681","(0,50, 0,87)",{"$f":"HYPERLINK(\"https://www.kir.hu/okmfit/getJelentes.aspx?tip=t&id=035107&th=1\",\"Jelentések\")","v":"Jelentések"}]
["Budapest XVIII. Kerületi Bókay Árpád Általános Iskola","035119",1,1181,"Budapest","Wlassics Gyula utca 69.","általános iskola",2,"Kelet-pesti - XVIII. ker.","Budapest","Budapest",null,null,{"$f":"HYPERLINK(\"https://www.kir.hu/okmfit/getJelentes.aspx?tip=t&id=035119&th=1\",\"Jelentések\")","v":"Jelentések"}]
["Budapest XVIII. Kerületi Vörösmarty Mihály Ének-zenei, Nyelvi Általános Iskola és Gimnázium","035322",1,1181,"Budapest","Vörösmarty Mihály utca 64.","általános iskola",4,"Kelet-pesti - XVIII. ker.","Budapest","Budapest","0,778","(0,54, 1,04)",{"$f":"HYPERLINK(\"https://www.kir.hu/okmfit/getJelentes.aspx?tip=t&id=035322&th=1\",\"Jelentések\")","v":"Jelentések"}]
["Budapest XXI. Kerületi Eötvös József Általános Iskola","035172",1,1213,"Budapest","Szent István út 232.","általános iskola",1,"Dél-pesti - XXI. ker.","Budapest","Budapest","0,365","(0,18, 0,53)",{"$f":"HYPERLINK(\"https://www.kir.hu/okmfit/getJelentes.aspx?tip=t&id=035172&th=1\",\"Jelentések\")","v":"Jelentések"}]
["Budapest XXI. Kerületi Kölcsey Ferenc Általános Iskola","035170",1,1214,"Budapest","Iskola tér 45.","általános iskola",4,"Dél-pesti - XXI. ker.","Budapest","Budapest","0,705","(0,51, 0,85)",{"$f":"HYPERLINK(\"https://www.kir.hu/okmfit/getJelentes.aspx?tip=t&id=035170&th=1\",\"Jelentések\")","v":"Jelentések"}]
["Budapest XXI. Kerületi Nagy Imre Általános Iskola és Alapfokú Művészeti Iskola","035185",1,1214,"Budapest","Simon Bolivár sétány 4-8.","általános iskola",2,"Dél-pesti - XXI. ker.","Budapest","Budapest",null,null,{"$f":"HYPERLINK(\"https://www.kir.hu/okmfit/getJelentes.aspx?tip=t&id=035185&th=1\",\"Jelentések\")","v":"Jelentések"}]
["Budapest XXIII. Kerületi Fekete István Általános Iskola","035161",1,1237,"Budapest","Nyír utca 22.","általános iskola",1,"Dél-pesti - XXIII. ker.","Budapest","Budapest","0,060","(-0,28, 0,42)",{"$f":"HYPERLINK(\"https://www.kir.hu/okmfit/getJelentes.aspx?tip=t&id=035161&th=1\",\"Jelentések\")","v":"Jelentések"}]
["Budapest XXIII. Kerületi Grassalkovich Antal Általános Iskola","035155",1,1239,"Budapest","Hősök tere 18-20.","általános iskola",4,"Dél-pesti - XXIII. ker.","Budapest","Budapest","0,538","(0,36, 0,70)",{"$f":"HYPERLINK(\"https://www.kir.hu/okmfit/getJelentes.aspx?tip=t&id=035155&th=1\",\"Jelentések\")","v":"Jelentések"}]
["Budapesti Fazekas Mihály Gyakorló Általános Iskola és Gimnázium","035277",1,1082,"Budapest","Horváth Mihály tér 8.","általános iskola",4,"Belső-pesti - VIII. ker.","Budapest","Budapest",null,null,{"$f":"HYPERLINK(\"https://www.kir.hu/okmfit/getJelentes.aspx?tip=t&id=035277&th=1\",\"Jelentések\")","v":"Jelentések"}]
["Budapesti Ward Mária Általános Iskola, Gimnázium és Zeneművészeti Szakgimnázium","034894",1,1056,"Budapest","Irányi utca 3.","általános iskola",2,"Nyugat-pesti - V. ker.","Budapest","Budapest","1,047","(0,87, 1,25)",{"$f":"HYPERLINK(\"https://www.kir.hu/okmfit/getJelentes.aspx?tip=t&id=034894&th=1\",\"Jelentések\")","v":"Jelentések"}]
["Csabacsűdi Trefort Ágoston Általános Iskola","200632",1,5551,"Csabacsűd","Petőfi Sándor utca 37.","általános iskola",1,"Szarvasi","Békés","Dél-Alföld",null,null,{"$f":"HYPERLINK(\"https://www.kir.hu/okmfit/getJelentes.aspx?tip=t&id=200632&th=1\",\"Jelentések\")","v":"Jelentések"}]
["Csemői Ladányi Mihály Általános Iskola Nyársapáti Tagintézménye","201226",2,2712,"Nyársapát","József A. út 6.","általános iskola",3,"Nagykőrösi","Pest","Közép-Magyarország",null,null,{"$f":"HYPERLINK(\"https://www.kir.hu/okmfit/getJelentes.aspx?tip=t&id=201226&th=2\",\"Jelentések\")","v":"Jelentések"}]
["Csongrád és Térsége Általános Iskola Piroskavárosi Általános Iskolája","200945",6,6640,"Csongrád","Piroska János tér 3.","általános iskola",1,"Csongrádi","Csongrád","Dél-Alföld","-0,308","(-0,61, 0,03)",{"$f":"HYPERLINK(\"https://www.kir.hu/okmfit/getJelentes.aspx?tip=t&id=200945&th=6\",\"Jelentések\")","v":"Jelentések"}]
["Csornai Általános Iskola és Alapfokú Művészeti Iskola","200953",5,9300,"Csorna","Árpád utca 2.","általános iskola",1,"Csornai","Győr-Moson-Sopron","Nyugat-Dunántúl","-0,098","(-0,32, 0,08)",{"$f":"HYPERLINK(\"https://www.kir.hu/okmfit/getJelentes.aspx?tip=t&id=200953&th=5\",\"Jelentések\")","v":"Jelentések"}]
["Dadi Református Egyházközség Általános Művelődési Központja","201683",1,2854,"Dad","Fő utca 37.","általános iskola",1,"Oroszlányi","Komárom-Esztergom","Közép-Dunántúl",null,null,{"$f":"HYPERLINK(\"https://www.kir.hu/okmfit/getJelentes.aspx?tip=t&id=201683&th=1\",\"Jelentések\")","v":"Jelentések"}]
["Debreceni Egyetem Kossuth Lajos Gyakorló Gimnáziuma és Általános Iskolája Kossuth utca 33. szám alatti telephelye","031200",2,4024,"Debrecen","Kossuth utca 33.","általános iskola",4,"Debreceni","Hajdú-Bihar","Észak-Alföld",null,null,{"$f":"HYPERLINK(\"https://www.kir.hu/okmfit/getJelentes.aspx?tip=t&id=031200&th=2\",\"Jelentések\")","v":"Jelentések"}]
["Dél-Zselic Általános Iskola Kétújfalui Konrád Ignác Általános Iskolája","027404",9,7975,"Kétújfalu","Zrínyi utca 1.","általános iskola",1,"Szigetvári","Baranya","Dél-Dunántúl","-0,456","(-0,81, -0,06)",{"$f":"HYPERLINK(\"https://www.kir.hu/okmfit/getJelentes.aspx?tip=t&id=027404&th=9\",\"Jelentések\")","v":"Jelentések"}]
["Dömsödi Széchenyi István Általános Iskola Arany János Általános Iskolája","032537",5,2345,"Apaj","Dobó I. utca 74.","általános iskola",1,"Ráckevei","Pest","Közép-Magyarország",null,null,{"$f":"HYPERLINK(\"https://www.kir.hu/okmfit/getJelentes.aspx?tip=t&id=032537&th=5\",\"Jelentések\")","v":"Jelentések"}]
["Dr. Kozma Pál Általános Iskola","200071",1,4545,"Gyulaháza","Petőfi Sándor utca 62.","általános iskola",2,"Kisvárdai","Szabolcs-Szatmár-Bereg","Észak-Alföld","-0,795","(-1,13, -0,42)",{"$f":"HYPERLINK(\"https://www.kir.hu/okmfit/getJelentes.aspx?tip=t&id=200071&th=1\",\"Jelentések\")","v":"Jelentések"}]
["Drávasztárai Általános Iskola","027342",1,7960,"Drávasztára","Zrínyi Miklós utca 64.","általános iskola",1,"Sellyei","Baranya","Dél-Dunántúl","-1,049","(-1,58, -0,54)",{"$f":"HYPERLINK(\"https://www.kir.hu/okmfit/getJelentes.aspx?tip=t&id=027342&th=1\",\"Jelentések\")","v":"Jelentések"}]
["Dunakeszi Fazekas Mihály Német Nyelvoktató Nemzetiségi Általános Iskola","037315",1,2120,"Dunakeszi","Radnóti utca 29.","általános iskola",3,"Dunakeszi","Pest","Közép-Magyarország",null,null,{"$f":"HYPERLINK(\"https://www.kir.hu/okmfit/getJelentes.aspx?tip=t&id=037315&th=1\",\"Jelentések\")","v":"Jelentések"}]
["Dunaújvárosi Móricz Zsigmond Általános Iskola","030031",1,2400,"Dunaújváros","Kodály Zoltán utca 7.","általános iskola",4,"Dunaújvárosi","Fejér","Közép-Dunántúl","0,747","(0,58, 0,94)",{"$f":"HYPERLINK(\"https://www.kir.hu/okmfit/getJelentes.aspx?tip=t&id=030031&th=1\",\"Jelentések\")","v":"Jelentések"}]
["Dusnok-Fajsz Általános Iskola","200961",1,6353,"Dusnok","Köztársaság utca 20-22.","általános iskola",1,"Kalocsai","Bács-Kiskun","Dél-Alföld","-0,369","(-0,62, -0,19)",{"$f":"HYPERLINK(\"https://www.kir.hu/okmfit/getJelentes.aspx?tip=t&id=200961&th=1\",\"Jelentések\")","v":"Jelentések"}]
["ELTE Gyertyánffy István Gyakorló Általános Iskola Telephelye","035001",3,1126,"Budapest","Beethoven utca 3.","általános iskola",3,"Dél-budai - XII. ker.","Budapest","Budapest","1,117","(0,78, 1,39)",{"$f":"HYPERLINK(\"https://www.kir.hu/okmfit/getJelentes.aspx?tip=t&id=035001&th=3\",\"Jelentések\")","v":"Jelentések"}]
["Érdi Batthyány Sportiskolai Általános Iskola","037319",1,2030,"Érd","Fácán köz 1.","általános iskola",1,"Érdi","Pest","Közép-Magyarország","-0,293","(-0,45, -0,08)",{"$f":"HYPERLINK(\"https://www.kir.hu/okmfit/getJelentes.aspx?tip=t&id=037319&th=1\",\"Jelentések\")","v":"Jelentések"}]
["Erzsébetvárosi Kéttannyelvű Általános Iskola, Szakgimnázium és Szakközépiskola","201491",1,1073,"Budapest","Kertész utca 30.","általános iskola",2,"Belső-pesti - VII. ker.","Budapest","Budapest",null,null,{"$f":"HYPERLINK(\"https://www.kir.hu/okmfit/getJelentes.aspx?tip=t&id=201491&th=1\",\"Jelentések\")","v":"Jelentések"}]
["Eszterházy Károly Főiskola Gyakorló Általános, Közép-, Alapfokú Művészeti Iskola és Pedagógiai Intézet - telephely","200679",2,3300,"Eger","Bartók Béla tér 4.","általános iskola",2,"Egri","Heves","Észak-Magyarország","0,889","(0,75, 1,02)",{"$f":"HYPERLINK(\"https://www.kir.hu/okmfit/getJelentes.aspx?tip=t&id=200679&th=2\",\"Jelentések\")","v":"Jelentések"}]
["Etesi Általános Iskola","032226",1,3136,"Etes","Iskola út 5.","általános iskola",1,"Salgótarjáni","Nógrád","Észak-Magyarország","-0,926","(-1,43, -0,37)",{"$f":"HYPERLINK(\"https://www.kir.hu/okmfit/getJelentes.aspx?tip=t&id=032226&th=1\",\"Jelentések\")","v":"Jelentések"}]
["Fabriczius József Általános Iskola","032386",1,2112,"Veresegyház","Fő út 77-79.","általános iskola",5,"Gödöllői","Pest","Közép-Magyarország",null,null,{"$f":"HYPERLINK(\"https://www.kir.hu/okmfit/getJelentes.aspx?tip=t&id=032386&th=1\",\"Jelentések\")","v":"Jelentések"}]
["Fáy András Református Általános Iskola és Alapfokú Művészeti Iskola","200482",2,2217,"Gomba","Iskola utca 2.","általános iskola",1,"Monori","Pest","Közép-Magyarország","-0,145","(-0,58, 0,19)",{"$f":"HYPERLINK(\"https://www.kir.hu/okmfit/getJelentes.aspx?tip=t&id=200482&th=2\",\"Jelentések\")","v":"Jelentések"}]
["Fekete Borbála Általános Iskola","031138",1,4121,"Szentpéterszeg","Kossuth Lajos utca 36.","általános iskola",1,"Berettyóújfalui","Hajdú-Bihar","Észak-Alföld","-1,204","(-1,61, -0,81)",{"$f":"HYPERLINK(\"https://www.kir.hu/okmfit/getJelentes.aspx?tip=t&id=031138&th=1\",\"Jelentések\")","v":"Jelentések"}]
["Felsőbüki Nagy Pál Általános Iskola és Szakközépiskola","036659",1,9737,"Bük","Eötvös József utca 1-3.","általános iskola",1,"Kőszegi","Vas","Nyugat-Dunántúl","-0,049","(-0,34, 0,20)",{"$f":"HYPERLINK(\"https://www.kir.hu/okmfit/getJelentes.aspx?tip=t&id=036659&th=1\",\"Jelentések\")","v":"Jelentések"}]
["Fiáth János Általános Iskola","030618",1,9086,"Töltéstava","Iskola utca 40.","általános iskola",2,"Győri","Győr-Moson-Sopron","Nyugat-Dunántúl","-0,211","(-0,94, 0,37)",{"$f":"HYPERLINK(\"https://www.kir.hu/okmfit/getJelentes.aspx?tip=t&id=030618&th=1\",\"Jelentések\")","v":"Jelentések"}]
["Fodros Általános Iskola","034832",1,1039,"Budapest","Fodros utca 38-40.","általános iskola",3,"Észak-budai - III.ker.","Budapest","Budapest",null,null,{"$f":"HYPERLINK(\"https://www.kir.hu/okmfit/getJelentes.aspx?tip=t&id=034832&th=1\",\"Jelentések\")","v":"Jelentések"}]
["Földesi Karácsony Sándor Általános Iskola és Alapfokú Művészeti Iskola","039603",1,4177,"Földes","Karácsony Sándor tér 6.","általános iskola",2,"Püspökladányi","Hajdú-Bihar","Észak-Alföld","-0,533","(-0,85, -0,21)",{"$f":"HYPERLINK(\"https://www.kir.hu/okmfit/getJelentes.aspx?tip=t&id=039603&th=1\",\"Jelentések\")","v":"Jelentések"}]
["Fráter Erzsébet Általános Iskola","201124",1,3052,"Csécse","Madách út 6.","általános iskola",1,"Pásztói","Nógrád","Észak-Magyarország",null,null,{"$f":"HYPERLINK(\"https://www.kir.hu/okmfit/getJelentes.aspx?tip=t&id=201124&th=1\",\"Jelentések\")","v":"Jelentések"}]
["Gazdagrét - Törökugrató Általános Iskola","034993",1,1118,"Budapest","Törökugrató utca 15.","általános iskola",4,"Dél-budai - XI. ker.","Budapest","Budapest",null,null,{"$f":"HYPERLINK(\"https://www.kir.hu/okmfit/getJelentes.aspx?tip=t&id=034993&th=1\",\"Jelentések\")","v":"Jelentések"}]
["Géza Fejedelem Református Általános Iskola, Óvoda és Bölcsőde","200473",1,2621,"Verőce","Garam utca 8-10.","általános iskola",1,"Szobi","Pest","Közép-Magyarország",null,null,{"$f":"HYPERLINK(\"https://www.kir.hu/okmfit/getJelentes.aspx?tip=t&id=200473&th=1\",\"Jelentések\")","v":"Jelentések"}]
["Gógánfai Fekete István Általános Iskola Dabronci Telephelye","200900",3,8345,"Dabronc","Kossuth utca 53.","általános iskola",1,"Sümegi","Veszprém","Közép-Dunántúl","-0,465","(-0,82, -0,22)",{"$f":"HYPERLINK(\"https://www.kir.hu/okmfit/getJelentes.aspx?tip=t&id=200900&th=3\",\"Jelentések\")","v":"Jelentések"}]
["Gulner Gyula Általános Iskola","035122",1,1183,"Budapest","Gulner Gyula utca 2.","általános iskola",3,"Kelet-pesti - XVIII. ker.","Budapest","Budapest","0,672","(0,34, 0,96)",{"$f":"HYPERLINK(\"https://www.kir.hu/okmfit/getJelentes.aspx?tip=t&id=035122&th=1\",\"Jelentések\")","v":"Jelentések"}]
["Gyarmati Kossuth Lajos Általános Iskola","030621",1,9126,"Gyarmat","Kossuth utca 46.","általános iskola",1,"Téti","Győr-Moson-Sopron","Nyugat-Dunántúl","-0,462","(-0,86, -0,14)",{"$f":"HYPERLINK(\"https://www.kir.hu/okmfit/getJelentes.aspx?tip=t&id=030621&th=1\",\"Jelentések\")","v":"Jelentések"}]
["Gyárvárosi Általános Iskola","202958",1,9027,"Győr","Vágóhíd út 4.","általános iskola",1,"Győri","Győr-Moson-Sopron","Nyugat-Dunántúl","-0,250","(-0,58, 0,01)",{"$f":"HYPERLINK(\"https://www.kir.hu/okmfit/getJelentes.aspx?tip=t&id=202958&th=1\",\"Jelentések\")","v":"Jelentések"}]
["Gyóni Géza Általános Iskola","038950",1,2373,"Dabas","Szőlő utca 2.","általános iskola",1,"Dabasi","Pest","Közép-Magyarország",null,null,{"$f":"HYPERLINK(\"https://www.kir.hu/okmfit/getJelentes.aspx?tip=t&id=038950&th=1\",\"Jelentések\")","v":"Jelentések"}]
["Gyömrői II. Rákóczi Ferenc Általános Iskola","032499",1,2230,"Gyömrő","Bajcsy-Zsilinszky út 79-81.","általános iskola",2,"Monori","Pest","Közép-Magyarország","-0,282","(-0,63, 0,21)",{"$f":"HYPERLINK(\"https://www.kir.hu/okmfit/getJelentes.aspx?tip=t&id=032499&th=1\",\"Jelentések\")","v":"Jelentések"}]
["Győri Arany János Angol-Német Két Tanítási Nyelvű Általános Iskola","030523",1,9024,"Győr","Örkény István utca 6.","általános iskola",3,"Győri","Győr-Moson-Sopron","Nyugat-Dunántúl","0,046","(-0,09, 0,27)",{"$f":"HYPERLINK(\"https://www.kir.hu/okmfit/getJelentes.aspx?tip=t&id=030523&th=1\",\"Jelentések\")","v":"Jelentések"}]
["Győri Váci Mihály Általános Iskola","202960",1,9011,"Győr","Váci Mihály út 1-3.","általános iskola",2,"Győri","Győr-Moson-Sopron","Nyugat-Dunántúl","0,242","(-0,03, 0,55)",{"$f":"HYPERLINK(\"https://www.kir.hu/okmfit/getJelentes.aspx?tip=t&id=202960&th=1\",\"Jelentések\")","v":"Jelentések"}]
["Győrzámolyi Petőfi Sándor Általános Iskola","030594",1,9172,"Győrzámoly","Iskola út 1.","általános iskola",1,"Győri","Győr-Moson-Sopron","Nyugat-Dunántúl","-0,214","(-0,52, 0,02)",{"$f":"HYPERLINK(\"https://www.kir.hu/okmfit/getJelentes.aspx?tip=t&id=030594&th=1\",\"Jelentések\")","v":"Jelentések"}]
["Hajdúszoboszlói Bárdos Lajos Általános Iskola","031032",1,4200,"Hajdúszoboszló","Arany János utca 2.","általános iskola",1,"Hajdúszoboszlói","Hajdú-Bihar","Észak-Alföld",null,null,{"$f":"HYPERLINK(\"https://www.kir.hu/okmfit/getJelentes.aspx?tip=t&id=031032&th=1\",\"Jelentések\")","v":"Jelentések"}]
["Helvécia-Ballószög Általános Iskola Wéber Ede Általános Iskolája","201076",1,6034,"Helvécia","Kiskőrösi út 71.","általános iskola",2,"Kecskeméti","Bács-Kiskun","Dél-Alföld","-0,824","(-1,40, -0,14)",{"$f":"HYPERLINK(\"https://www.kir.hu/okmfit/getJelentes.aspx?tip=t&id=201076&th=1\",\"Jelentések\")","v":"Jelentések"}]
["Hernádnémeti Református Általános Iskola, Két Tanítási Nyelvű és Alapfokú Művészeti Iskola","029122",1,3564,"Hernádnémeti","Petőfi Sándor utca 85.","általános iskola",3,"Miskolci","Borsod-Abaúj-Zemplén","Észak-Magyarország","-0,011","(-0,37, 0,38)",{"$f":"HYPERLINK(\"https://www.kir.hu/okmfit/getJelentes.aspx?tip=t&id=029122&th=1\",\"Jelentések\")","v":"Jelentések"}]
["Hétvezér Általános Iskola","030062",1,8000,"Székesfehérvár","Hétvezér tér 1.","általános iskola",3,"Székesfehérvári","Fejér","Közép-Dunántúl",null,null,{"$f":"HYPERLINK(\"https://www.kir.hu/okmfit/getJelentes.aspx?tip=t&id=030062&th=1\",\"Jelentések\")","v":"Jelentések"}]
["Homokszentgyörgyi I. István Általános Iskola Arany János Tagintézménye","034012",4,7535,"Lad","Szabadság tér 23.","általános iskola",1,"Barcsi","Somogy","Dél-Dunántúl","-0,720","(-1,01, -0,32)",{"$f":"HYPERLINK(\"https://www.kir.hu/okmfit/getJelentes.aspx?tip=t&id=034012&th=4\",\"Jelentések\")","v":"Jelentések"}]
["Horti Batthyány József Általános Iskola","031559",1,3014,"Hort","Bajcsy-Zsilinszky út 23.","általános iskola",1,"Hatvani","Heves","Észak-Magyarország","-0,305","(-0,64, 0,08)",{"$f":"HYPERLINK(\"https://www.kir.hu/okmfit/getJelentes.aspx?tip=t&id=031559&th=1\",\"Jelentések\")","v":"Jelentések"}]
["Hosszúhetényi Általános Iskola és Alapfokú Művészeti Iskola","027275",1,7694,"Hosszúhetény","Verseny utca 9.","általános iskola",2,"Pécsi","Baranya","Dél-Dunántúl","0,075","(-0,15, 0,36)",{"$f":"HYPERLINK(\"https://www.kir.hu/okmfit/getJelentes.aspx?tip=t&id=027275&th=1\",\"Jelentések\")","v":"Jelentések"}]
["Hriszto Botev Német Nemzetiségi Nyelvoktató Általános Iskola","037036",1,8200,"Veszprém","Botev utca 2.","általános iskola",4,"Veszprémi","Veszprém","Közép-Dunántúl","0,844","(0,64, 0,99)",{"$f":"HYPERLINK(\"https://www.kir.hu/okmfit/getJelentes.aspx?tip=t&id=037036&th=1\",\"Jelentések\")","v":"Jelentések"}]
["Ibolya Utcai Általános Iskola","031095",1,4027,"Debrecen","Ibolya utca 3.","általános iskola",3,"Debreceni","Hajdú-Bihar","Észak-Alföld",null,null,{"$f":"HYPERLINK(\"https://www.kir.hu/okmfit/getJelentes.aspx?tip=t&id=031095&th=1\",\"Jelentések\")","v":"Jelentések"}]
["II. János Pál Pápa Katolikus Óvoda és Általános Iskola","201509",1,3078,"Bátonyterenye","Zrínyi út 1.","általános iskola",1,"Bátonyterenyei","Nógrád","Észak-Magyarország",null,null,{"$f":"HYPERLINK(\"https://www.kir.hu/okmfit/getJelentes.aspx?tip=t&id=201509&th=1\",\"Jelentések\")","v":"Jelentések"}]
["Ikladi Tasnádi Lajos Német Nemzetiségi Általános Iskola Koren István Tagiskolája","032368",2,2182,"Domony","Fő út 95-97.","általános iskola",1,"Aszódi","Pest","Közép-Magyarország","-0,980","(-1,53, -0,37)",{"$f":"HYPERLINK(\"https://www.kir.hu/okmfit/getJelentes.aspx?tip=t&id=032368&th=2\",\"Jelentések\")","v":"Jelentések"}]
["Imre Sándor Általános Iskola","032524",1,2255,"Szentlőrinckáta","Dózsa György út 48.","általános iskola",1,"Nagykátai","Pest","Közép-Magyarország",null,null,{"$f":"HYPERLINK(\"https://www.kir.hu/okmfit/getJelentes.aspx?tip=t&id=032524&th=1\",\"Jelentések\")","v":"Jelentések"}]
["Jakabszállás- Fülöpjakab Általános Iskola Eötvös József Általános Iskolája","201015",3,6116,"Fülöpjakab","Templom utca 1.","általános iskola",1,"Kecskeméti","Bács-Kiskun","Dél-Alföld",null,null,{"$f":"HYPERLINK(\"https://www.kir.hu/okmfit/getJelentes.aspx?tip=t&id=201015&th=3\",\"Jelentések\")","v":"Jelentések"}]
["Jáki Nagy Márton Nyelvoktató Nemzetiségi Általános Iskola","036696",1,9798,"Ják","Szabadnép utca 29.","általános iskola",2,"Szombathelyi","Vas","Nyugat-Dunántúl",null,null,{"$f":"HYPERLINK(\"https://www.kir.hu/okmfit/getJelentes.aspx?tip=t&id=036696&th=1\",\"Jelentések\")","v":"Jelentések"}]
["Jánossomorjai Körzeti Általános Iskola","200543",1,9241,"Jánossomorja","Iparos utca 10.","általános iskola",1,"Mosonmagyaróvári","Győr-Moson-Sopron","Nyugat-Dunántúl","-0,411","(-0,70, -0,18)",{"$f":"HYPERLINK(\"https://www.kir.hu/okmfit/getJelentes.aspx?tip=t&id=200543&th=1\",\"Jelentések\")","v":"Jelentések"}]
["Jászberényi Nagyboldogasszony Katolikus Óvoda, Kéttannyelvű Általános Iskola, Középiskola és Kollégium","035844",1,5100,"Jászberény","Lehel vezér tér 5.","általános iskola",1,"Jászberényi","Jász-Nagykun-Szolnok","Észak-Alföld","0,322","(0,17, 0,54)",{"$f":"HYPERLINK(\"https://www.kir.hu/okmfit/getJelentes.aspx?tip=t&id=035844&th=1\",\"Jelentések\")","v":"Jelentések"}]
["Jászsági Általános Iskola Bercsényi Miklós Általános Iskolai Tagintézménye","201345",20,5100,"Jászberény","Bercsényi út 9-13.","általános iskola",1,"Jászberényi","Jász-Nagykun-Szolnok","Észak-Alföld","0,119","(-0,02, 0,28)",{"$f":"HYPERLINK(\"https://www.kir.hu/okmfit/getJelentes.aspx?tip=t&id=201345&th=20\",\"Jelentések\")","v":"Jelentések"}]
["Jókai Mór Református Általános Iskola","033400",1,4400,"Nyíregyháza","Színház utca 3.","általános iskola",1,"Nyíregyházi","Szabolcs-Szatmár-Bereg","Észak-Alföld","0,514","(0,36, 0,66)",{"$f":"HYPERLINK(\"https://www.kir.hu/okmfit/getJelentes.aspx?tip=t&id=033400&th=1\",\"Jelentések\")","v":"Jelentések"}]
["Kálvin Téri Református Általános Iskola","201665",1,6900,"Makó","Kálvin tér 6.","általános iskola",2,"Makói","Csongrád","Dél-Alföld","0,177","(0,05, 0,41)",{"$f":"HYPERLINK(\"https://www.kir.hu/okmfit/getJelentes.aspx?tip=t&id=201665&th=1\",\"Jelentések\")","v":"Jelentések"}]
["Kapocs Magyar-Angol Két Tannyelvű Általános Iskola","035124",1,1188,"Budapest","Kapocs utca 56.","általános iskola",3,"Kelet-pesti - XVIII. ker.","Budapest","Budapest","0,320","(0,15, 0,54)",{"$f":"HYPERLINK(\"https://www.kir.hu/okmfit/getJelentes.aspx?tip=t&id=035124&th=1\",\"Jelentések\")","v":"Jelentések"}]
["Kecskeméti Belvárosi Zrínyi Ilona Általános Iskola II. Rákóczi Ferenc Általános Iskolája","200920",16,6000,"Kecskemét","Tóth László sétány 2.","általános iskola",1,"Kecskeméti","Bács-Kiskun","Dél-Alföld","-0,328","(-0,52, -0,12)",{"$f":"HYPERLINK(\"https://www.kir.hu/okmfit/getJelentes.aspx?tip=t&id=200920&th=16\",\"Jelentések\")","v":"Jelentések"}]
["Kecskeméti Kodály Zoltán Ének-zenei Általános Iskola, Gimnázium, Szakgimnázium és Alapfokú Művészeti Iskola","200923",1,6000,"Kecskemét","Dózsa György út 22.","általános iskola",2,"Kecskeméti","Bács-Kiskun","Dél-Alföld",null,null,{"$f":"HYPERLINK(\"https://www.kir.hu/okmfit/getJelentes.aspx?tip=t&id=200923&th=1\",\"Jelentések\")","v":"Jelentések"}]
["Kecskeméti Református Általános Iskola","027777",1,6000,"Kecskemét","Szabadság tér 7.","általános iskola",4,"Kecskeméti","Bács-Kiskun","Dél-Alföld","0,646","(0,48, 0,82)",{"$f":"HYPERLINK(\"https://www.kir.hu/okmfit/getJelentes.aspx?tip=t&id=027777&th=1\",\"Jelentések\")","v":"Jelentések"}]
["Kecskeméti Széchenyivárosi Arany János Általános Iskola","200922",1,6000,"Kecskemét","Lunkányi János utca 10.","általános iskola",3,"Kecskeméti","Bács-Kiskun","Dél-Alföld","0,256","(0,10, 0,40)",{"$f":"HYPERLINK(\"https://www.kir.hu/okmfit/getJelentes.aspx?tip=t&id=200922&th=1\",\"Jelentések\")","v":"Jelentések"}]
["Kecskeméti Vásárhelyi Pál Általános Iskola és Alapfokú Művészeti Iskola","200924",1,6000,"Kecskemét","Alkony utca 11.","általános iskola",2,"Kecskeméti","Bács-Kiskun","Dél-Alföld","0,520","(0,36, 0,70)",{"$f":"HYPERLINK(\"https://www.kir.hu/okmfit/getJelentes.aspx?tip=t&id=200924&th=1\",\"Jelentések\")","v":"Jelentések"}]
["Kerkai Jenő Általános Iskola","037544",1,8973,"Csesztreg","Dózsa György út 1.","általános iskola",1,"Lenti","Zala","Nyugat-Dunántúl","-0,586","(-1,16, -0,12)",{"$f":"HYPERLINK(\"https://www.kir.hu/okmfit/getJelentes.aspx?tip=t&id=037544&th=1\",\"Jelentések\")","v":"Jelentések"}]
["Kertvárosi Általános Iskola Hadsereg utcai telephelye","201301",2,2800,"Tatabánya","Hadsereg utca 111.","általános iskola",1,"Tatabányai","Komárom-Esztergom","Közép-Dunántúl",null,null,{"$f":"HYPERLINK(\"https://www.kir.hu/okmfit/getJelentes.aspx?tip=t&id=201301&th=2\",\"Jelentések\")","v":"Jelentések"}]
["Kesjár Csaba Általános Iskola","037740",1,2040,"Budaörs","Őszibarack utca 29.","általános iskola",2,"Budakeszi","Pest","Közép-Magyarország","0,789","(0,57, 01,00)",{"$f":"HYPERLINK(\"https://www.kir.hu/okmfit/getJelentes.aspx?tip=t&id=037740&th=1\",\"Jelentések\")","v":"Jelentések"}]
["Kézdi-Vásárhelyi Imre Általános Iskola","031919",1,2822,"Szomor","Mátyás király utca 8-10.","általános iskola",1,"Tatabányai","Komárom-Esztergom","Közép-Dunántúl","-0,032","(-0,43, 0,43)",{"$f":"HYPERLINK(\"https://www.kir.hu/okmfit/getJelentes.aspx?tip=t&id=031919&th=1\",\"Jelentések\")","v":"Jelentések"}]
["Kiskunfélegyházi József Attila Általános Iskola","201063",1,6100,"Kiskunfélegyháza","Deák Ferenc utca 14.","általános iskola",1,"Kiskunfélegyházi","Bács-Kiskun","Dél-Alföld","-0,297","(-0,62, 0,08)",{"$f":"HYPERLINK(\"https://www.kir.hu/okmfit/getJelentes.aspx?tip=t&id=201063&th=1\",\"Jelentések\")","v":"Jelentések"}]
["Kiskunmajsai Arany János Általános Iskola és Egységes Gyógypedagógiai Módszertani Intézmény","200993",1,6120,"Kiskunmajsa","Fő utca 69-71.","általános iskola",3,"Kiskunmajsai","Bács-Kiskun","Dél-Alföld","-0,658","(-0,93, -0,41)",{"$f":"HYPERLINK(\"https://www.kir.hu/okmfit/getJelentes.aspx?tip=t&id=200993&th=1\",\"Jelentések\")","v":"Jelentések"}]
["Kispesti Bolyai János Általános Iskola","035149",1,1195,"Budapest","Árpád utca 14.","általános iskola",3,"Dél-pesti - XIX. ker.","Budapest","Budapest",null,null,{"$f":"HYPERLINK(\"https://www.kir.hu/okmfit/getJelentes.aspx?tip=t&id=035149&th=1\",\"Jelentések\")","v":"Jelentések"}]
["Kispesti Erkel Ferenc Általános Iskola","035142",1,1192,"Budapest","Hungária út 11.","általános iskola",3,"Dél-pesti - XIX. ker.","Budapest","Budapest",null,null,{"$f":"HYPERLINK(\"https://www.kir.hu/okmfit/getJelentes.aspx?tip=t&id=035142&th=1\",\"Jelentések\")","v":"Jelentések"}]
["Kispesti Kós Károly Általános Iskola","035143",1,1192,"Budapest","Hungária út 28.","általános iskola",2,"Dél-pesti - XIX. ker.","Budapest","Budapest",null,null,{"$f":"HYPERLINK(\"https://www.kir.hu/okmfit/getJelentes.aspx?tip=t&id=035143&th=1\",\"Jelentések\")","v":"Jelentések"}]
["Koch Valéria Gimnázium, Általános Iskola, Óvoda, Kollégium és Pedagógiai Intézet","200406",1,7624,"Pécs","Tiborc utca 28/1.","általános iskola",4,"Pécsi","Baranya","Dél-Dunántúl",null,null,{"$f":"HYPERLINK(\"https://www.kir.hu/okmfit/getJelentes.aspx?tip=t&id=200406&th=1\",\"Jelentések\")","v":"Jelentések"}]
["Kodály Zoltán Magyar Kórusiskola Általános Iskola, Gimnázium, Alapfokú Művészeti Iskola és Szakgimnázium","035307",1,1015,"Budapest","Toldy Ferenc utca 28-30.","általános iskola",1,"Észak-budai - I. ker.","Budapest","Budapest","1,472","(1,32, 1,61)",{"$f":"HYPERLINK(\"https://www.kir.hu/okmfit/getJelentes.aspx?tip=t&id=035307&th=1\",\"Jelentések\")","v":"Jelentések"}]
["Kossuth Lajos Evangélikus Általános Iskola és Alapfokú Művészeti Iskola","201674",1,6230,"Soltvadkert","Bocskai utca 2.","általános iskola",1,"Kiskőrösi","Bács-Kiskun","Dél-Alföld","-0,082","(-0,27, 0,09)",{"$f":"HYPERLINK(\"https://www.kir.hu/okmfit/getJelentes.aspx?tip=t&id=201674&th=1\",\"Jelentések\")","v":"Jelentések"}]
["Kossuth Lajos Gimnázium Kossuth Lajos Általános Iskolája","036014",3,5350,"Tiszafüred","Kossuth tér 2.","általános iskola",2,"Tiszafüredi","Jász-Nagykun-Szolnok","Észak-Alföld","-0,276","(-0,58, 0,03)",{"$f":"HYPERLINK(\"https://www.kir.hu/okmfit/getJelentes.aspx?tip=t&id=036014&th=3\",\"Jelentések\")","v":"Jelentések"}]
["Kőbányai Bem József Általános Iskola","034968",1,1101,"Budapest","Hungária körút 5-7.","általános iskola",1,"Kelet-pesti - X. ker.","Budapest","Budapest",null,null,{"$f":"HYPERLINK(\"https://www.kir.hu/okmfit/getJelentes.aspx?tip=t&id=034968&th=1\",\"Jelentések\")","v":"Jelentések"}]
["Kőbányai Kada Mihály Általános Iskola","034957",1,1103,"Budapest","Kada utca 27-29.","általános iskola",1,"Kelet-pesti - X. ker.","Budapest","Budapest","0,319","(0,04, 0,62)",{"$f":"HYPERLINK(\"https://www.kir.hu/okmfit/getJelentes.aspx?tip=t&id=034957&th=1\",\"Jelentések\")","v":"Jelentések"}]
["Kőkúti Általános Iskola","031836",1,2890,"Tata","Kőkút köz 2.","általános iskola",3,"Tatai","Komárom-Esztergom","Közép-Dunántúl","0,490","(0,32, 0,72)",{"$f":"HYPERLINK(\"https://www.kir.hu/okmfit/getJelentes.aspx?tip=t&id=031836&th=1\",\"Jelentések\")","v":"Jelentések"}]
["KT Bem József Általános Iskola Boróka Általános Iskolája","200955",16,6235,"Bócsa","Kecskeméti utca 1.","általános iskola",1,"Kiskőrösi","Bács-Kiskun","Dél-Alföld","-0,351","(-0,59, -0,10)",{"$f":"HYPERLINK(\"https://www.kir.hu/okmfit/getJelentes.aspx?tip=t&id=200955&th=16\",\"Jelentések\")","v":"Jelentések"}]
["Kunfehértói Általános Iskola","027912",1,6413,"Kunfehértó","Úttörő tér 7.","általános iskola",3,"Kiskunhalasi","Bács-Kiskun","Dél-Alföld","-0,540","(-1,12, -0,08)",{"$f":"HYPERLINK(\"https://www.kir.hu/okmfit/getJelentes.aspx?tip=t&id=027912&th=1\",\"Jelentések\")","v":"Jelentések"}]
["Kunszt József Katolikus Általános Iskola","027888",1,6221,"Akasztó","Tubáni utca 30.","általános iskola",1,"Kiskőrösi","Bács-Kiskun","Dél-Alföld","-0,485","(-0,81, -0,10)",{"$f":"HYPERLINK(\"https://www.kir.hu/okmfit/getJelentes.aspx?tip=t&id=027888&th=1\",\"Jelentések\")","v":"Jelentések"}]
["Lánycsóki Általános Iskola és Alapfokú Művészeti Iskola","027302",1,7759,"Lánycsók","Dózsa utca 2-6.","általános iskola",2,"Mohácsi","Baranya","Dél-Dunántúl",null,null,{"$f":"HYPERLINK(\"https://www.kir.hu/okmfit/getJelentes.aspx?tip=t&id=027302&th=1\",\"Jelentések\")","v":"Jelentések"}]
["Leányvári Erdély Jenő Általános Iskola","201437",1,2518,"Leányvár","Erzsébet utca 92.","általános iskola",1,"Esztergomi","Komárom-Esztergom","Közép-Dunántúl","-0,265","(-0,67, 0,19)",{"$f":"HYPERLINK(\"https://www.kir.hu/okmfit/getJelentes.aspx?tip=t&id=201437&th=1\",\"Jelentések\")","v":"Jelentések"}]
["Létavértesi Arany János Általános Iskola","031156",1,4281,"Létavértes","Árpád tér 10.","általános iskola",2,"Derecskei","Hajdú-Bihar","Észak-Alföld","-0,711","(-0,98, -0,40)",{"$f":"HYPERLINK(\"https://www.kir.hu/okmfit/getJelentes.aspx?tip=t&id=031156&th=1\",\"Jelentések\")","v":"Jelentések"}]
["Levéli Német Nemzetiségi Általános Iskola","030653",1,9221,"Levél","Fő utca 10.","általános iskola",1,"Mosonmagyaróvári","Győr-Moson-Sopron","Nyugat-Dunántúl","-0,238","(-0,52, 0,11)",{"$f":"HYPERLINK(\"https://www.kir.hu/okmfit/getJelentes.aspx?tip=t&id=030653&th=1\",\"Jelentések\")","v":"Jelentések"}]
["Litéri Református Általános Iskola","201743",1,8196,"Litér","Petőfi utca 8.","általános iskola",1,"Balatonalmádi","Veszprém","Közép-Dunántúl","0,420","(0,03, 0,79)",{"$f":"HYPERLINK(\"https://www.kir.hu/okmfit/getJelentes.aspx?tip=t&id=201743&th=1\",\"Jelentések\")","v":"Jelentések"}]
["Lucfalvi Általános Iskola","032254",2,3129,"Lucfalva","Rákóczi út 36.","általános iskola",1,"Salgótarjáni","Nógrád","Észak-Magyarország","-0,720","(-1,53, -0,03)",{"$f":"HYPERLINK(\"https://www.kir.hu/okmfit/getJelentes.aspx?tip=t&id=032254&th=2\",\"Jelentések\")","v":"Jelentések"}]
["Magdu Lucian Román Általános Iskola és Óvoda","028304",5,5830,"Battonya","Fő utca 121.","általános iskola",1,"Mezőkovácsházai","Békés","Dél-Alföld","-0,754","(-1,05, -0,48)",{"$f":"HYPERLINK(\"https://www.kir.hu/okmfit/getJelentes.aspx?tip=t&id=028304&th=5\",\"Jelentések\")","v":"Jelentések"}]
["Mátraderecskei Általános Iskola","031513",1,3246,"Mátraderecske","Kossuth Lajos út 2.","általános iskola",1,"Pétervásárai","Heves","Észak-Magyarország","-0,205","(-0,78, 0,30)",{"$f":"HYPERLINK(\"https://www.kir.hu/okmfit/getJelentes.aspx?tip=t&id=031513&th=1\",\"Jelentések\")","v":"Jelentések"}]
["Mezőkeresztesi Kossuth Lajos Általános Iskola","029096",1,3441,"Mezőkeresztes","Összekötő utca 28.","általános iskola",1,"Mezőkövesdi","Borsod-Abaúj-Zemplén","Észak-Magyarország",null,null,{"$f":"HYPERLINK(\"https://www.kir.hu/okmfit/getJelentes.aspx?tip=t&id=029096&th=1\",\"Jelentések\")","v":"Jelentések"}]
["Mikes Kelemen Katolikus Gimnázium és Szakképző Iskola, Általános Iskola és Óvoda Hősök Téri Telephelye","201601",2,5830,"Battonya","Hősök tere 11/A","általános iskola",2,"Mezőkovácsházai","Békés","Dél-Alföld",null,null,{"$f":"HYPERLINK(\"https://www.kir.hu/okmfit/getJelentes.aspx?tip=t&id=201601&th=2\",\"Jelentések\")","v":"Jelentések"}]
["Miskolc-Diósgyőri Református Általános Iskola és Óvoda","028995",1,3534,"Miskolc","Nagy Lajos király útja 14.","általános iskola",2,"Miskolci","Borsod-Abaúj-Zemplén","Észak-Magyarország","0,750","(0,60, 0,96)",{"$f":"HYPERLINK(\"https://www.kir.hu/okmfit/getJelentes.aspx?tip=t&id=028995&th=1\",\"Jelentések\")","v":"Jelentések"}]
["Molnár Ferenc Magyar-Angol Két Tanítási Nyelvű Általános Iskola","034936",1,1085,"Budapest","Somogyi Béla utca 9-15.","általános iskola",1,"Belső-pesti - VIII. ker.","Budapest","Budapest",null,null,{"$f":"HYPERLINK(\"https://www.kir.hu/okmfit/getJelentes.aspx?tip=t&id=034936&th=1\",\"Jelentések\")","v":"Jelentések"}]
["Monori Ady Úti Általános Iskola","037758",1,2200,"Monor","Ady Endre út 48-52.","általános iskola",2,"Monori","Pest","Közép-Magyarország","0,204","(-0,06, 0,43)",{"$f":"HYPERLINK(\"https://www.kir.hu/okmfit/getJelentes.aspx?tip=t&id=037758&th=1\",\"Jelentések\")","v":"Jelentések"}]
["Monori Kossuth Lajos Általános Iskola","037754",1,2200,"Monor","Kossuth Lajos út 98.","általános iskola",2,"Monori","Pest","Közép-Magyarország","-0,242","(-0,49, 0,05)",{"$f":"HYPERLINK(\"https://www.kir.hu/okmfit/getJelentes.aspx?tip=t&id=037754&th=1\",\"Jelentések\")","v":"Jelentések"}]
["Mórahalmi Móra Ferenc Általános Iskola","029633",6,6782,"Mórahalom","Barmos György tér 2.","általános iskola",1,"Mórahalmi","Csongrád","Dél-Alföld","0,025","(-0,17, 0,27)",{"$f":"HYPERLINK(\"https://www.kir.hu/okmfit/getJelentes.aspx?tip=t&id=029633&th=6\",\"Jelentések\")","v":"Jelentések"}]
["Móri dr. Zimmermann Ágoston Általános Iskola","030042",1,8060,"Mór","Kodály Zoltán utca 28.","általános iskola",1,"Móri","Fejér","Közép-Dunántúl","0,259","(-0,02, 0,61)",{"$f":"HYPERLINK(\"https://www.kir.hu/okmfit/getJelentes.aspx?tip=t&id=030042&th=1\",\"Jelentések\")","v":"Jelentések"}]
["Munkácsy Mihály Katolikus Általános Iskola Balástya","201755",1,6764,"Balástya","Rákóczi utca 32.","általános iskola",1,"Kisteleki","Csongrád","Dél-Alföld","-0,319","(-0,56, -0,05)",{"$f":"HYPERLINK(\"https://www.kir.hu/okmfit/getJelentes.aspx?tip=t&id=201755&th=1\",\"Jelentések\")","v":"Jelentések"}]
["Nagyszentjánosi Hunyadi Mátyás Általános Iskola","030601",1,9072,"Nagyszentjános","Árpád utca 11/a.","általános iskola",2,"Győri","Győr-Moson-Sopron","Nyugat-Dunántúl",null,null,{"$f":"HYPERLINK(\"https://www.kir.hu/okmfit/getJelentes.aspx?tip=t&id=030601&th=1\",\"Jelentések\")","v":"Jelentések"}]
["Nyírteleki Általános Iskola Petőfi Sándor utca 42. Telephelye","200468",2,4461,"Nyírtelek","Petőfi Sándor utca 42.","általános iskola",1,"Nyíregyházi","Szabolcs-Szatmár-Bereg","Észak-Alföld","-1,175","(-1,45, -0,85)",{"$f":"HYPERLINK(\"https://www.kir.hu/okmfit/getJelentes.aspx?tip=t&id=200468&th=2\",\"Jelentések\")","v":"Jelentések"}]
["Óbudai Harrer Pál Általános Iskola","034833",1,1033,"Budapest","Harrer Pál utca 7.","általános iskola",1,"Észak-budai - III.ker.","Budapest","Budapest","0,308","(0,02, 0,48)",{"$f":"HYPERLINK(\"https://www.kir.hu/okmfit/getJelentes.aspx?tip=t&id=034833&th=1\",\"Jelentések\")","v":"Jelentések"}]
["Óbudai Szent Péter és Pál Szalézi Általános Iskola és Óvoda","034858",2,1036,"Budapest","Tímár utca 10-16.","általános iskola",3,"Észak-budai - III.ker.","Budapest","Budapest","1,252","(1,07, 1,43)",{"$f":"HYPERLINK(\"https://www.kir.hu/okmfit/getJelentes.aspx?tip=t&id=034858&th=2\",\"Jelentések\")","v":"Jelentések"}]
["Oladi Általános Iskola","200897",1,9700,"Szombathely","Simon István utca 2-6.","általános iskola",1,"Szombathelyi","Vas","Nyugat-Dunántúl","0,088","(-0,12, 0,27)",{"$f":"HYPERLINK(\"https://www.kir.hu/okmfit/getJelentes.aspx?tip=t&id=200897&th=1\",\"Jelentések\")","v":"Jelentések"}]
["Öttevényi Általános Iskola","030603",1,9153,"Öttevény","Fő utca 143.","általános iskola",2,"Győri","Győr-Moson-Sopron","Nyugat-Dunántúl","0,100","(-0,24, 0,47)",{"$f":"HYPERLINK(\"https://www.kir.hu/okmfit/getJelentes.aspx?tip=t&id=030603&th=1\",\"Jelentések\")","v":"Jelentések"}]
["Pais Dezső Általános Iskola","034841",1,1038,"Budapest","Pais Dezső utca 1-3.","általános iskola",3,"Észak-budai - III.ker.","Budapest","Budapest","0,076","(-0,19, 0,44)",{"$f":"HYPERLINK(\"https://www.kir.hu/okmfit/getJelentes.aspx?tip=t&id=034841&th=1\",\"Jelentések\")","v":"Jelentések"}]
["Pesthidegkúti Waldorf Általános Iskola, Gimnázium és Alapfokú Művészeti Iskola","035346",1,1028,"Budapest","Kossuth L. utca 15-17.","általános iskola",2,"Észak-budai - II. ker.","Budapest","Budapest","1,478","(1,26, 1,65)",{"$f":"HYPERLINK(\"https://www.kir.hu/okmfit/getJelentes.aspx?tip=t&id=035346&th=1\",\"Jelentések\")","v":"Jelentések"}]
["Petőfi Sándor Baptista Általános Iskola","201825",2,3023,"Petőfibánya","Iskola utca 1.","általános iskola",2,"Hatvani","Heves","Észak-Magyarország","0,236","(-0,00, 0,48)",{"$f":"HYPERLINK(\"https://www.kir.hu/okmfit/getJelentes.aspx?tip=t&id=201825&th=2\",\"Jelentések\")","v":"Jelentések"}]
["Petőfi Sándor Református Általános Iskola","201700",1,3980,"Sátoraljaújhely","Petőfi Sándor utca 9.","általános iskola",1,"Sátoraljaújhelyi","Borsod-Abaúj-Zemplén","Észak-Magyarország","0,228","(-0,04, 0,53)",{"$f":"HYPERLINK(\"https://www.kir.hu/okmfit/getJelentes.aspx?tip=t&id=201700&th=1\",\"Jelentések\")","v":"Jelentések"}]
["PTE Gyakorló Általános Iskola, Gimnázium és Szakgimnázium Általános Iskolája","027406",3,7624,"Pécs","Alkotmány utca 38.","általános iskola",4,"Pécsi","Baranya","Dél-Dunántúl","1,037","(0,87, 1,24)",{"$f":"HYPERLINK(\"https://www.kir.hu/okmfit/getJelentes.aspx?tip=t&id=027406&th=3\",\"Jelentések\")","v":"Jelentések"}]
["Rákóczifalvai II. Rákóczi Ferenc Általános Iskola és Alapfokú Művészeti Iskola","035945",1,5085,"Rákóczifalva","Szabadság tér 1.","általános iskola",2,"Szolnoki","Jász-Nagykun-Szolnok","Észak-Alföld","-0,084","(-0,38, 0,16)",{"$f":"HYPERLINK(\"https://www.kir.hu/okmfit/getJelentes.aspx?tip=t&id=035945&th=1\",\"Jelentések\")","v":"Jelentések"}]
["Reményik Sándor Evangélikus Általános Iskola és Alapfokú Művészeti Iskola","200973",1,9700,"Szombathely","Szent László király utca 7-11.","általános iskola",2,"Szombathelyi","Vas","Nyugat-Dunántúl","0,663","(0,30, 1,02)",{"$f":"HYPERLINK(\"https://www.kir.hu/okmfit/getJelentes.aspx?tip=t&id=200973&th=1\",\"Jelentések\")","v":"Jelentések"}]
["Reménység Katolikus Általános Iskola","035147",1,1196,"Budapest","Petőfi  utca 56.","általános iskola",1,"Dél-pesti - XIX. ker.","Budapest","Budapest","0,519","(0,02, 0,90)",{"$f":"HYPERLINK(\"https://www.kir.hu/okmfit/getJelentes.aspx?tip=t&id=035147&th=1\",\"Jelentések\")","v":"Jelentések"}]
["Rétsági Általános Iskola","032184",1,2651,"Rétság","Iskola tér 1.","általános iskola",2,"Rétsági","Nógrád","Észak-Magyarország","-0,341","(-0,52, -0,15)",{"$f":"HYPERLINK(\"https://www.kir.hu/okmfit/getJelentes.aspx?tip=t&id=032184&th=1\",\"Jelentések\")","v":"Jelentések"}]
["Richter János Zeneművészeti Szakgimnázium, Általános Iskola, Alapfokú Művészeti Iskola és Kollégium Bartók Béla Ének-zenei Általános Iskolája","030724",2,9025,"Győr","Simor János püspök tere 16.","általános iskola",1,"Győri","Győr-Moson-Sopron","Nyugat-Dunántúl","0,903","(0,59, 1,24)",{"$f":"HYPERLINK(\"https://www.kir.hu/okmfit/getJelentes.aspx?tip=t&id=030724&th=2\",\"Jelentések\")","v":"Jelentések"}]
["Salgótarjáni Általános Iskola és Kollégium","032169",10,3100,"Salgótarján","József Attila út 2.","általános iskola",1,"Salgótarjáni","Nógrád","Észak-Magyarország","0,460","(0,27, 0,68)",{"$f":"HYPERLINK(\"https://www.kir.hu/okmfit/getJelentes.aspx?tip=t&id=032169&th=10\",\"Jelentések\")","v":"Jelentések"}]
["Sashalmi Tanoda Általános Iskola","035093",1,1163,"Budapest","Metró utca 3-7.","általános iskola",2,"Észak-pesti - XVI. ker.","Budapest","Budapest","0,690","(0,50, 0,84)",{"$f":"HYPERLINK(\"https://www.kir.hu/okmfit/getJelentes.aspx?tip=t&id=035093&th=1\",\"Jelentések\")","v":"Jelentések"}]
["Siófoki Vak Bottyán János Általános Iskola és Alapfokú Művészeti Iskola","202780",1,8600,"Siófok","Március 15. park 2.","általános iskola",2,"Siófoki","Somogy","Dél-Dunántúl","0,437","(0,31, 0,58)",{"$f":"HYPERLINK(\"https://www.kir.hu/okmfit/getJelentes.aspx?tip=t&id=202780&th=1\",\"Jelentések\")","v":"Jelentések"}]
["Sopronhorpácsi Általános Iskola","030683",2,9463,"Sopronhorpács","Fő utca 62.","általános iskola",1,"Soproni","Győr-Moson-Sopron","Nyugat-Dunántúl","0,239","(-0,10, 0,71)",{"$f":"HYPERLINK(\"https://www.kir.hu/okmfit/getJelentes.aspx?tip=t&id=030683&th=2\",\"Jelentések\")","v":"Jelentések"}]
["Szabadság Sugárúti Általános Iskola Szabadság sugárút 34-36. Telephelye","035112",2,1171,"Budapest","Szabadság sugárút 34-36.","általános iskola",1,"Kelet-pesti - XVII. ker.","Budapest","Budapest","0,205","(0,02, 0,40)",{"$f":"HYPERLINK(\"https://www.kir.hu/okmfit/getJelentes.aspx?tip=t&id=035112&th=2\",\"Jelentések\")","v":"Jelentések"}]
["Szajoli Kölcsey Ferenc Általános Iskola","035947",1,5081,"Szajol","Kölcsey Ferenc út 45.","általános iskola",1,"Szolnoki","Jász-Nagykun-Szolnok","Észak-Alföld","-0,245","(-0,43, -0,02)",{"$f":"HYPERLINK(\"https://www.kir.hu/okmfit/getJelentes.aspx?tip=t&id=035947&th=1\",\"Jelentések\")","v":"Jelentések"}]
["Szalaszendi Körzeti Általános Iskola","029033",1,3863,"Szalaszend","József Attila út 7/A.","általános iskola",2,"Encsi","Borsod-Abaúj-Zemplén","Észak-Magyarország","-1,424","(-1,95, -0,82)",{"$f":"HYPERLINK(\"https://www.kir.hu/okmfit/getJelentes.aspx?tip=t&id=029033&th=1\",\"Jelentések\")","v":"Jelentések"}]
["Százhalombattai Eötvös Loránd Általános Iskola","037768",1,2440,"Százhalombatta","Liszt Ferenc sétány 2.","általános iskola",1,"Érdi","Pest","Közép-Magyarország","0,453","(0,29, 0,60)",{"$f":"HYPERLINK(\"https://www.kir.hu/okmfit/getJelentes.aspx?tip=t&id=037768&th=1\",\"Jelentések\")","v":"Jelentések"}]
["Szegedi Arany János Általános Iskola","029674",1,6724,"Szeged","Kukovecz Nana utca 4-6.","általános iskola",2,"Szegedi","Csongrád","Dél-Alföld",null,null,{"$f":"HYPERLINK(\"https://www.kir.hu/okmfit/getJelentes.aspx?tip=t&id=029674&th=1\",\"Jelentések\")","v":"Jelentések"}]
["Szegedi Dózsa György Általános Iskola","029667",1,6721,"Szeged","Szent György tér 7.","általános iskola",1,"Szegedi","Csongrád","Dél-Alföld","0,371","(0,11, 0,57)",{"$f":"HYPERLINK(\"https://www.kir.hu/okmfit/getJelentes.aspx?tip=t&id=029667&th=1\",\"Jelentések\")","v":"Jelentések"}]
["Szegedi Gregor József Általános Iskola","029664",1,6726,"Szeged","Fő fasor 61.","általános iskola",1,"Szegedi","Csongrád","Dél-Alföld","0,738","(0,56, 0,98)",{"$f":"HYPERLINK(\"https://www.kir.hu/okmfit/getJelentes.aspx?tip=t&id=029664&th=1\",\"Jelentések\")","v":"Jelentések"}]
["Szegedi Madách Imre Magyar-Angol Két Tanítási Nyelvű Általános Iskola","029656",1,6721,"Szeged","Madách utca 20.","általános iskola",2,"Szegedi","Csongrád","Dél-Alföld",null,null,{"$f":"HYPERLINK(\"https://www.kir.hu/okmfit/getJelentes.aspx?tip=t&id=029656&th=1\",\"Jelentések\")","v":"Jelentések"}]
["Szegedi Tudományegyetem Gyakorló Gimnázium és Általános Iskola","029742",1,6722,"Szeged","Szentháromság utca 2.","általános iskola",2,"Szegedi","Csongrád","Dél-Alföld","1,072","(0,93, 1,21)",{"$f":"HYPERLINK(\"https://www.kir.hu/okmfit/getJelentes.aspx?tip=t&id=029742&th=1\",\"Jelentések\")","v":"Jelentések"}]
["Szegedi Tudományegyetem Juhász Gyula Gyakorló Általános és Alapfokú Művészeti Iskolája, Napközi Otthonos Óvodája","029681",1,6725,"Szeged","Boldogasszony sugárút 8.","általános iskola",5,"Szegedi","Csongrád","Dél-Alföld","1,044","(0,91, 1,15)",{"$f":"HYPERLINK(\"https://www.kir.hu/okmfit/getJelentes.aspx?tip=t&id=029681&th=1\",\"Jelentések\")","v":"Jelentések"}]
["Szegő Gábor Általános Iskola","035878",1,5000,"Szolnok","Templom út 6.","általános iskola",2,"Szolnoki","Jász-Nagykun-Szolnok","Észak-Alföld","0,577","(0,35, 0,81)",{"$f":"HYPERLINK(\"https://www.kir.hu/okmfit/getJelentes.aspx?tip=t&id=035878&th=1\",\"Jelentések\")","v":"Jelentések"}]
["Szegvári Forray Máté Általános Iskola és Alapfokú Művészeti Iskola","201538",1,6635,"Szegvár","Templom utca 2.","általános iskola",3,"Szentesi","Csongrád","Dél-Alföld","-0,282","(-0,54, -0,01)",{"$f":"HYPERLINK(\"https://www.kir.hu/okmfit/getJelentes.aspx?tip=t&id=201538&th=1\",\"Jelentések\")","v":"Jelentések"}]
["Székesfehérvári II. Rákóczi Ferenc Magyar-Angol Két Tanítási Nyelvű Általános Iskola","030051",1,8000,"Székesfehérvár","Szekfű Gyula utca 4.","általános iskola",3,"Székesfehérvári","Fejér","Közép-Dunántúl",null,null,{"$f":"HYPERLINK(\"https://www.kir.hu/okmfit/getJelentes.aspx?tip=t&id=030051&th=1\",\"Jelentések\")","v":"Jelentések"}]
["Szekszárdi Babits Mihály Általános Iskola","036280",1,7100,"Szekszárd","Kadarka utca 17.","általános iskola",1,"Szekszárdi","Tolna","Dél-Dunántúl","0,342","(0,04, 0,54)",{"$f":"HYPERLINK(\"https://www.kir.hu/okmfit/getJelentes.aspx?tip=t&id=036280&th=1\",\"Jelentések\")","v":"Jelentések"}]
["Szendehelyi Német Nemzetiségi Általános Iskola","032280",1,2640,"Szendehely","Szabadság utca 2-4.","általános iskola",1,"Rétsági","Nógrád","Észak-Magyarország",null,null,{"$f":"HYPERLINK(\"https://www.kir.hu/okmfit/getJelentes.aspx?tip=t&id=032280&th=1\",\"Jelentések\")","v":"Jelentések"}]
["Szent Angéla Ferences Általános Iskola és Gimnázium","100565",1,1024,"Budapest","Ady Endre utca 3.","általános iskola",4,"Észak-budai - II. ker.","Budapest","Budapest","1,290","(1,05, 1,49)",{"$f":"HYPERLINK(\"https://www.kir.hu/okmfit/getJelentes.aspx?tip=t&id=100565&th=1\",\"Jelentések\")","v":"Jelentések"}]
["Szent Anna Katolikus Általános Iskola","030578",1,9317,"Szany","Ifjúság utca 1.","általános iskola",4,"Csornai","Győr-Moson-Sopron","Nyugat-Dunántúl","-0,333","(-0,64, 0,03)",{"$f":"HYPERLINK(\"https://www.kir.hu/okmfit/getJelentes.aspx?tip=t&id=030578&th=1\",\"Jelentések\")","v":"Jelentések"}]
["Szent Anna Katolikus Óvoda és Általános Iskola","033569",1,4232,"Geszteréd","Petőfi utca 8.","általános iskola",2,"Nagykállói","Szabolcs-Szatmár-Bereg","Észak-Alföld","-0,443","(-0,89, 0,01)",{"$f":"HYPERLINK(\"https://www.kir.hu/okmfit/getJelentes.aspx?tip=t&id=033569&th=1\",\"Jelentések\")","v":"Jelentések"}]
["Szent Gellért Katolikus Általános Iskola Pélyi Petőfi Sándor Tagiskolája","202748",4,3381,"Pély","Fő utca 138.","általános iskola",1,"Hevesi","Heves","Észak-Magyarország",null,null,{"$f":"HYPERLINK(\"https://www.kir.hu/okmfit/getJelentes.aspx?tip=t&id=202748&th=4\",\"Jelentések\")","v":"Jelentések"}]
["Szent II. János Pál Óvoda, Általános Iskola és Gimnázium","034796",2,1116,"Budapest","Mezőkövesd utca 10.","általános iskola",3,"Dél-budai - XI. ker.","Budapest","Budapest",null,null,{"$f":"HYPERLINK(\"https://www.kir.hu/okmfit/getJelentes.aspx?tip=t&id=034796&th=2\",\"Jelentések\")","v":"Jelentések"}]
["Szent Imre Katolikus Általános Iskola és Óvoda","037714",1,2100,"Gödöllő","Szabadság tér 19.","általános iskola",1,"Gödöllői","Pest","Közép-Magyarország",null,null,{"$f":"HYPERLINK(\"https://www.kir.hu/okmfit/getJelentes.aspx?tip=t&id=037714&th=1\",\"Jelentések\")","v":"Jelentések"}]
["Szent Imre Katolikus Általános Iskola, Liliom Óvoda és Egységes Óvoda-Bölcsőde","035938",1,5331,"Kenderes","Szent István út 36.","általános iskola",2,"Karcagi","Jász-Nagykun-Szolnok","Észak-Alföld","-0,992","(-1,26, -0,64)",{"$f":"HYPERLINK(\"https://www.kir.hu/okmfit/getJelentes.aspx?tip=t&id=035938&th=1\",\"Jelentések\")","v":"Jelentések"}]
["Szent Imre Római Katolikus Általános Iskola és Óvoda","031821",2,2900,"Komárom","Bajcsy-Zsilinszky út 15.","általános iskola",1,"Komáromi","Komárom-Esztergom","Közép-Dunántúl","0,129","(-0,38, 0,67)",{"$f":"HYPERLINK(\"https://www.kir.hu/okmfit/getJelentes.aspx?tip=t&id=031821&th=2\",\"Jelentések\")","v":"Jelentések"}]
["Szent István Egyházi Általános Iskola és Kollégium","029757",1,6900,"Makó","Szent István tér 14-16.","általános iskola",1,"Makói","Csongrád","Dél-Alföld","0,188","(-0,13, 0,43)",{"$f":"HYPERLINK(\"https://www.kir.hu/okmfit/getJelentes.aspx?tip=t&id=029757&th=1\",\"Jelentések\")","v":"Jelentések"}]
["Szent István Római Katolikus Általános Iskola és Óvoda","201669",1,5094,"Tiszajenő","Széchenyi út 28.","általános iskola",2,"Szolnoki","Jász-Nagykun-Szolnok","Észak-Alföld",null,null,{"$f":"HYPERLINK(\"https://www.kir.hu/okmfit/getJelentes.aspx?tip=t&id=201669&th=1\",\"Jelentések\")","v":"Jelentések"}]
["Szent József Kertvárosi Katolikus Általános Iskola Telephelye","200992",1,6800,"Hódmezővásárhely","Hóvirág utca 3","általános iskola",2,"Hódmezővásárhelyi","Csongrád","Dél-Alföld","0,305","(0,13, 0,53)",{"$f":"HYPERLINK(\"https://www.kir.hu/okmfit/getJelentes.aspx?tip=t&id=200992&th=1\",\"Jelentések\")","v":"Jelentések"}]
["Szent Korona Általános Iskola","035076",1,1155,"Budapest","Szent Korona útja 5.","általános iskola",1,"Észak-pesti - XV. ker.","Budapest","Budapest","0,275","(0,04, 0,44)",{"$f":"HYPERLINK(\"https://www.kir.hu/okmfit/getJelentes.aspx?tip=t&id=035076&th=1\",\"Jelentések\")","v":"Jelentések"}]
["Szent László Katolikus Általános Iskola","036604",1,9600,"Sárvár","Dózsa György utca 28.","általános iskola",1,"Sárvári","Vas","Nyugat-Dunántúl","0,148","(-0,07, 0,32)",{"$f":"HYPERLINK(\"https://www.kir.hu/okmfit/getJelentes.aspx?tip=t&id=036604&th=1\",\"Jelentések\")","v":"Jelentések"}]
["Szent Margit Általános Iskola Szent László Tagiskolája","031856",2,2060,"Bicske","Prohászka Ottokár út 3.","általános iskola",4,"Bicskei","Fejér","Közép-Dunántúl","0,861","(0,51, 1,12)",{"$f":"HYPERLINK(\"https://www.kir.hu/okmfit/getJelentes.aspx?tip=t&id=031856&th=2\",\"Jelentések\")","v":"Jelentések"}]
["Szentendrei Barcsay Jenő Általános Iskola","037723",1,2000,"Szentendre","Kálvária út 18.","általános iskola",2,"Szentendrei","Pest","Közép-Magyarország",null,null,{"$f":"HYPERLINK(\"https://www.kir.hu/okmfit/getJelentes.aspx?tip=t&id=037723&th=1\",\"Jelentések\")","v":"Jelentések"}]
["Szentistvántelepi Általános Iskola","032408",1,2011,"Budakalász","Martinovics utca 9.","általános iskola",2,"Szentendrei","Pest","Közép-Magyarország",null,null,{"$f":"HYPERLINK(\"https://www.kir.hu/okmfit/getJelentes.aspx?tip=t&id=032408&th=1\",\"Jelentések\")","v":"Jelentések"}]
["Szerepi Kelemen János Általános Iskola","031183",1,4163,"Szerep","Kossuth utca 5-7.","általános iskola",1,"Püspökladányi","Hajdú-Bihar","Észak-Alföld",null,null,{"$f":"HYPERLINK(\"https://www.kir.hu/okmfit/getJelentes.aspx?tip=t&id=031183&th=1\",\"Jelentések\")","v":"Jelentések"}]
["Szigetköz Körzeti Általános Iskola és Alapfokú Művészeti Iskola","030642",1,9232,"Darnózseli","Bem tér 3.","általános iskola",2,"Mosonmagyaróvári","Győr-Moson-Sopron","Nyugat-Dunántúl","-0,162","(-0,36, 0,07)",{"$f":"HYPERLINK(\"https://www.kir.hu/okmfit/getJelentes.aspx?tip=t&id=030642&th=1\",\"Jelentések\")","v":"Jelentések"}]
["Szigetszentmiklósi József Attila Általános Iskola és Alapfokú Művészeti Iskola","037746",6,2310,"Szigetszentmiklós","Szebeni út 81. B ép.","általános iskola",1,"Szigetszentmiklósi","Pest","Közép-Magyarország","0,488","(0,35, 0,60)",{"$f":"HYPERLINK(\"https://www.kir.hu/okmfit/getJelentes.aspx?tip=t&id=037746&th=6\",\"Jelentések\")","v":"Jelentések"}]
["Szilágyi Erzsébet Keresztény Általános és Alapfokú Művészeti Iskola","037039",1,8200,"Veszprém","Iskola utca 6.","általános iskola",3,"Veszprémi","Veszprém","Közép-Dunántúl",null,null,{"$f":"HYPERLINK(\"https://www.kir.hu/okmfit/getJelentes.aspx?tip=t&id=037039&th=1\",\"Jelentések\")","v":"Jelentések"}]
["Szlovák Két Tanítási Nyelvű Általános Iskola és Óvoda","028337",1,5940,"Tótkomlós","Földvári út 1.","általános iskola",3,"Orosházi","Békés","Dél-Alföld","0,286","(-0,24, 0,78)",{"$f":"HYPERLINK(\"https://www.kir.hu/okmfit/getJelentes.aspx?tip=t&id=028337&th=1\",\"Jelentések\")","v":"Jelentések"}]
["Szolnoki Fiumei Úti Általános Iskola","035882",1,5000,"Szolnok","Fiumei utca 5.","általános iskola",2,"Szolnoki","Jász-Nagykun-Szolnok","Észak-Alföld","0,007","(-0,31, 0,28)",{"$f":"HYPERLINK(\"https://www.kir.hu/okmfit/getJelentes.aspx?tip=t&id=035882&th=1\",\"Jelentések\")","v":"Jelentések"}]
["Szolnoki II. Rákóczi Ferenc Magyar-Német Két Tanítási Nyelvű Általános Iskola","035881",1,5000,"Szolnok","Rákóczi út 45.","általános iskola",2,"Szolnoki","Jász-Nagykun-Szolnok","Észak-Alföld","0,482","(0,30, 0,70)",{"$f":"HYPERLINK(\"https://www.kir.hu/okmfit/getJelentes.aspx?tip=t&id=035881&th=1\",\"Jelentések\")","v":"Jelentések"}]
["Talentum Angol-Magyar Két Tanítási Nyelvű Általános Iskola, Gimnázium és Művészeti Szakgimnázium","031945",3,2890,"Tata","Bartók Béla utca 1/a","általános iskola",1,"Tatai","Komárom-Esztergom","Közép-Dunántúl",null,null,{"$f":"HYPERLINK(\"https://www.kir.hu/okmfit/getJelentes.aspx?tip=t&id=031945&th=3\",\"Jelentések\")","v":"Jelentések"}]
["Talentum Református Általános Iskola, Székesfehérvár","200145",1,8000,"Székesfehérvár","Széchenyi utca 20.","általános iskola",1,"Székesfehérvári","Fejér","Közép-Dunántúl","0,859","(0,50, 1,30)",{"$f":"HYPERLINK(\"https://www.kir.hu/okmfit/getJelentes.aspx?tip=t&id=200145&th=1\",\"Jelentések\")","v":"Jelentések"}]
["Tamási Áron Általános Iskola és Német Két Tannyelvű Nemzetiségi Gimnázium","035288",1,1124,"Budapest","Mártonhegyi út 34.","általános iskola",3,"Dél-budai - XII. ker.","Budapest","Budapest",null,null,{"$f":"HYPERLINK(\"https://www.kir.hu/okmfit/getJelentes.aspx?tip=t&id=035288&th=1\",\"Jelentések\")","v":"Jelentések"}]
["Tapolcai Bárdos Lajos Általános Iskola","201170",1,8300,"Tapolca","Bárdos Lajos utca 1-5.","általános iskola",1,"Tapolcai","Veszprém","Közép-Dunántúl","0,344","(0,04, 0,59)",{"$f":"HYPERLINK(\"https://www.kir.hu/okmfit/getJelentes.aspx?tip=t&id=201170&th=1\",\"Jelentések\")","v":"Jelentések"}]
["Tarjáni Kéttannyelvű Általános Iskola és Alapfokú Művészeti Iskola","029643",1,6723,"Szeged","Építő utca 9/A","általános iskola",2,"Szegedi","Csongrád","Dél-Alföld","0,277","(0,11, 0,40)",{"$f":"HYPERLINK(\"https://www.kir.hu/okmfit/getJelentes.aspx?tip=t&id=029643&th=1\",\"Jelentések\")","v":"Jelentések"}]
["Tisza-parti Általános Iskola","029640",1,6726,"Szeged","Maróczy Géza tér 2.","általános iskola",4,"Szegedi","Csongrád","Dél-Alföld","1,004","(0,79, 1,18)",{"$f":"HYPERLINK(\"https://www.kir.hu/okmfit/getJelentes.aspx?tip=t&id=029640&th=1\",\"Jelentések\")","v":"Jelentések"}]
["Tiszaalpári Árpád Fejedelem Általános Iskola","027907",2,6066,"Tiszaalpár","Alkotmány utca 14.","általános iskola",2,"Tiszakécskei","Bács-Kiskun","Dél-Alföld","-0,824","(-1,08, -0,61)",{"$f":"HYPERLINK(\"https://www.kir.hu/okmfit/getJelentes.aspx?tip=t&id=027907&th=2\",\"Jelentések\")","v":"Jelentések"}]
["Tiszadadai Holló László Általános Iskola","033633",1,4455,"Tiszadada","Kossuth tér 3.","általános iskola",1,"Tiszavasvári","Szabolcs-Szatmár-Bereg","Észak-Alföld",null,null,{"$f":"HYPERLINK(\"https://www.kir.hu/okmfit/getJelentes.aspx?tip=t&id=033633&th=1\",\"Jelentések\")","v":"Jelentések"}]
["Tököli Weöres Sándor Általános Iskola","032472",1,2316,"Tököl","Aradi utca 56.","általános iskola",1,"Szigetszentmiklósi","Pest","Közép-Magyarország","0,136","(-0,06, 0,34)",{"$f":"HYPERLINK(\"https://www.kir.hu/okmfit/getJelentes.aspx?tip=t&id=032472&th=1\",\"Jelentések\")","v":"Jelentések"}]
["Törökvész Úti Általános Iskola","034810",1,1025,"Budapest","Törökvész út 67-69.","általános iskola",1,"Észak-budai - II. ker.","Budapest","Budapest",null,null,{"$f":"HYPERLINK(\"https://www.kir.hu/okmfit/getJelentes.aspx?tip=t&id=034810&th=1\",\"Jelentések\")","v":"Jelentések"}]
["Ugodi Német Nemzetiségi Nyelvoktató Általános Iskola és Alapfokú Művészeti Iskola","037098",1,8564,"Ugod","Petőfi Sándor utca 54.","általános iskola",2,"Pápai","Veszprém","Közép-Dunántúl","-0,145","(-0,51, 0,27)",{"$f":"HYPERLINK(\"https://www.kir.hu/okmfit/getJelentes.aspx?tip=t&id=037098&th=1\",\"Jelentések\")","v":"Jelentések"}]
["Újbudai Teleki Blanka Általános Iskola","034979",1,1119,"Budapest","Bikszádi utca 61-63.","általános iskola",5,"Dél-budai - XI. ker.","Budapest","Budapest",null,null,{"$f":"HYPERLINK(\"https://www.kir.hu/okmfit/getJelentes.aspx?tip=t&id=034979&th=1\",\"Jelentések\")","v":"Jelentések"}]
["Újpesti Karinthy Frigyes Két Tanítási Nyelvű Általános Iskola","203194",1,1048,"Budapest","Hajló utca 2-8.","általános iskola",5,"Nyugat-pesti - IV. ker.","Budapest","Budapest","1,141","(0,99, 1,26)",{"$f":"HYPERLINK(\"https://www.kir.hu/okmfit/getJelentes.aspx?tip=t&id=203194&th=1\",\"Jelentések\")","v":"Jelentések"}]
["Váci Juhász Gyula Általános Iskola","037732",1,2600,"Vác","Báthori utca 17-19.","általános iskola",3,"Váci","Pest","Közép-Magyarország",null,null,{"$f":"HYPERLINK(\"https://www.kir.hu/okmfit/getJelentes.aspx?tip=t&id=037732&th=1\",\"Jelentések\")","v":"Jelentések"}]
["Váli Vajda János Általános Iskola","201256",1,2473,"Vál","Szent István tér 1.","általános iskola",1,"Martonvásári","Fejér","Közép-Dunántúl",null,null,{"$f":"HYPERLINK(\"https://www.kir.hu/okmfit/getJelentes.aspx?tip=t&id=201256&th=1\",\"Jelentések\")","v":"Jelentések"}]
["Vári Emil Általános Iskola","033386",1,4600,"Kisvárda","Mártírok útja 5.","általános iskola",1,"Kisvárdai","Szabolcs-Szatmár-Bereg","Észak-Alföld","0,220","(0,03, 0,38)",{"$f":"HYPERLINK(\"https://www.kir.hu/okmfit/getJelentes.aspx?tip=t&id=033386&th=1\",\"Jelentések\")","v":"Jelentések"}]
["Városligeti Magyar-Angol Két Tanítási Nyelvű Általános Iskola","035050",1,1146,"Budapest","Hermina út 9-15.","általános iskola",4,"Észak-pesti - XIV. ker.","Budapest","Budapest",null,null,{"$f":"HYPERLINK(\"https://www.kir.hu/okmfit/getJelentes.aspx?tip=t&id=035050&th=1\",\"Jelentések\")","v":"Jelentések"}]
["Városlődi Német Nemzetiségi Nyelvoktató Általános Iskola Kislődi Rőthy Mihály Tagintézménye","200811",3,8446,"Kislőd","Hősök tere 9.","általános iskola",1,"Ajkai","Veszprém","Közép-Dunántúl","-0,385","(-0,88, -0,05)",{"$f":"HYPERLINK(\"https://www.kir.hu/okmfit/getJelentes.aspx?tip=t&id=200811&th=3\",\"Jelentések\")","v":"Jelentések"}]
["Városmajori Gimnázium és Kós Károly Általános Iskola Ének-zene Tagozatos Általános Iskolája","035242",2,1122,"Budapest","Városmajor utca 59.","általános iskola",3,"Dél-budai - XII. ker.","Budapest","Budapest","1,446","(1,26, 1,62)",{"$f":"HYPERLINK(\"https://www.kir.hu/okmfit/getJelentes.aspx?tip=t&id=035242&th=2\",\"Jelentések\")","v":"Jelentések"}]
["Veszprémi Rózsa Úti Általános Iskola","037041",1,8200,"Veszprém","Rózsa utca 43/2.","általános iskola",3,"Veszprémi","Veszprém","Közép-Dunántúl","0,800","(0,63, 0,97)",{"$f":"HYPERLINK(\"https://www.kir.hu/okmfit/getJelentes.aspx?tip=t&id=037041&th=1\",\"Jelentések\")","v":"Jelentések"}]
["Villányi Általános Iskola és Alapfokú Művészeti Iskola","027360",1,7773,"Villány","Baross G. utca 1-3.","általános iskola",1,"Siklósi","Baranya","Dél-Dunántúl","-0,441","(-0,95, 0,07)",{"$f":"HYPERLINK(\"https://www.kir.hu/okmfit/getJelentes.aspx?tip=t&id=027360&th=1\",\"Jelentések\")","v":"Jelentések"}]
["Vincze Imre Református Általános Iskola","201701",1,2898,"Kocs","Szabadság tér 6.","általános iskola",1,"Tatai","Komárom-Esztergom","Közép-Dunántúl","-0,084","(-0,51, 0,32)",{"$f":"HYPERLINK(\"https://www.kir.hu/okmfit/getJelentes.aspx?tip=t&id=201701&th=1\",\"Jelentések\")","v":"Jelentések"}]
["Záhonyi Árpád Vezér Általános Iskola és Alapfokú Művészeti Iskola","033446",1,4625,"Záhony","József Attila út 48.","általános iskola",2,"Záhonyi","Szabolcs-Szatmár-Bereg","Észak-Alföld","-0,298","(-0,57, -0,06)",{"$f":"HYPERLINK(\"https://www.kir.hu/okmfit/getJelentes.aspx?tip=t&id=033446&th=1\",\"Jelentések\")","v":"Jelentések"}]
["Zalaegerszegi Öveges József Általános Iskola","037515",1,8900,"Zalaegerszeg","Iskola utca 1.","általános iskola",4,"Zalaegerszegi","Zala","Nyugat-Dunántúl","0,234","(0,04, 0,46)",{"$f":"HYPERLINK(\"https://www.kir.hu/okmfit/getJelentes.aspx?tip=t&id=037515&th=1\",\"Jelentések\")","v":"Jelentések"}]
["Zuglói Hajós Alfréd Magyar-Német Két Tanítási Nyelvű Általános Iskola","035059",1,1142,"Budapest","Ungvár utca 36.","általános iskola",4,"Észak-pesti - XIV. ker.","Budapest","Budapest",null,null,{"$f":"HYPERLINK(\"https://www.kir.hu/okmfit/getJelentes.aspx?tip=t&id=035059&th=1\",\"Jelentések\")","v":"Jelentések"}]